bitfinex/quotes_BTCUSD_20240613
["timestamp","ask_amount","ask_price","bid_price","bid_amount"]
[1718269999354,0.16426471,67552.0,67551.0,0.0740881]
[1718269999983,0.23576471,67552.0,67551.0,0.0740881]
[1718270005223,0.17236471,67552.0,67551.0,0.0740881]
[1718270005430,0.09706471,67552.0,67551.0,0.0740881]
[1718270008584,0.09706471,67552.0,67551.0,0.0940281]
[1718270008787,0.02556471,67552.0,67551.0,0.0740881]
[1718270009780,0.02556471,67552.0,67551.0,0.0940281]
[1718270009987,0.02556471,67552.0,67551.0,0.0740881]
[1718270014783,0.02556471,67552.0,67551.0,0.1544881]
[1718270015405,0.02556471,67552.0,67551.0,0.1744281]
[1718270015609,0.02556471,67552.0,67551.0,0.1544881]
[1718270019618,0.01282785,67552.0,67551.0,0.1544881]
[1718270019860,0.02556683,67552.0,67551.0,0.1544881]
[1718270020587,0.02556683,67552.0,67551.0,0.1744281]
[1718270020758,0.02556683,67552.0,67551.0,0.1544881]
[1718270021376,0.02642683,67552.0,67551.0,0.1544881]
[1718270021739,0.02642683,67552.0,67551.0,0.2369281]
[1718270022074,0.01368785,67552.0,67551.0,0.2369281]
[1718270022476,0.01168785,67552.0,67551.0,0.2369281]
[1718270022657,0.00868785,67552.0,67551.0,0.2369281]
[1718270022864,0.00868785,67552.0,67551.0,0.2379281]
[1718270023275,0.00868785,67552.0,67551.0,0.2369281]
[1718270023790,0.00868785,67552.0,67551.0,0.2379281]
[1718270024759,0.00868785,67552.0,67551.0,0.2389281]
[1718270025203,0.00868785,67552.0,67551.0,0.2379281]
[1718270025558,0.00868785,67552.0,67551.0,0.2389281]
[1718270025763,0.00868785,67552.0,67551.0,0.29465065]
[1718270028880,0.00868785,67552.0,67551.0,0.30465065]
[1718270029096,0.00868785,67552.0,67551.0,0.29465065]
[1718270030270,0.00862971,67552.0,67551.0,0.29465065]
[1718270037467,0.00862971,67552.0,67551.0,0.27769231]
[1718270037677,0.00862971,67552.0,67551.0,0.2389281]
[1718270040855,0.00862971,67552.0,67551.0,0.2489281]
[1718270041059,0.00862971,67552.0,67551.0,0.2719506]
[1718270041484,0.00862971,67552.0,67551.0,0.40627053]
[1718270041652,0.00862971,67552.0,67551.0,0.38324803]
[1718270046037,0.00862971,67552.0,67551.0,0.40627064]
[1718270047471,0.00862971,67552.0,67551.0,0.11905071]
[1718270047878,0.02137848,67552.0,67551.0,0.0960281]
[1718270051390,0.02137848,67552.0,67551.0,0.14864317]
[1718270053006,0.0766,67555.0,67551.0,0.14864317]
[1718270053007,0.04797848,67555.0,67551.0,0.14864317]
[1718270053275,0.1372,67560.0,67557.0,0.01994]
[1718270053477,0.01221757,67559.0,67557.0,0.01994]
[1718270053813,0.01221757,67559.0,67552.0,0.0806]
[1718270053814,0.01221757,67559.0,67558.0,0.01994]
[1718270054403,0.01221757,67559.0,67558.0,0.09172933]
[1718270054812,0.01221757,67559.0,67558.0,0.09132276]
[1718270055222,0.01921757,67559.0,67558.0,0.09232276]
[1718270055437,0.01921757,67559.0,67558.0,0.07238276]
[1718270055994,0.09491757,67559.0,67558.0,0.07238276]
[1718270056200,0.15571757,67559.0,67558.0,0.07238276]
[1718270057094,0.16371757,67559.0,67558.0,0.07338276]
[1718270060288,0.3080375,67559.0,67558.0,0.07338276]
[1718270060897,0.37439412,67559.0,67558.0,0.07338276]
[1718270061278,0.35227139,67559.0,67558.0,0.07338276]
[1718270062379,0.3080375,67559.0,67558.0,0.07338276]
[1718270062595,0.35227139,67559.0,67558.0,0.07338276]
[1718270063779,0.42350369,67559.0,67558.0,0.07338276]
[1718270063980,0.74295468,67559.0,67558.0,0.07338276]
[1718270064543,0.98244558,67559.0,67558.0,0.07338276]
[1718270064717,1.34304359,67559.0,67558.0,0.07338276]
[1718270064938,1.4565514,67559.0,67558.0,0.07338276]
[1718270065142,1.35395339,67559.0,67558.0,0.07138276]
[1718270065356,1.49827332,67559.0,67558.0,0.07138276]
[1718270065556,1.52327332,67559.0,67558.0,0.002]
[1718270065731,0.1381,67553.0,67552.0,0.07134598]
[1718270065970,0.1409,67552.0,67551.0,0.000946]
[1718270066146,0.89098593,67552.0,67551.0,0.000946]
[1718270066285,1.19807974,67552.0,67551.0,0.07229198]
[1718270066485,0.8148191,67552.0,67551.0,0.07229198]
[1718270067303,0.55306053,67552.0,67551.0,0.07229198]
[1718270067601,0.55311444,67552.0,67551.0,0.07229198]
[1718270067803,0.6526764,67552.0,67551.0,0.07229198]
[1718270067998,0.61322545,67552.0,67551.0,0.07229198]
[1718270068221,0.59113729,67552.0,67551.0,0.07229198]
[1718270068431,0.60513729,67552.0,67551.0,0.07329198]
[1718270068581,0.61913865,67552.0,67551.0,0.07329198]
[1718270068786,0.57497264,67552.0,67551.0,0.07329198]
[1718270069389,0.57497264,67552.0,67551.0,0.001946]
[1718270069607,0.61913865,67552.0,67551.0,0.001946]
[1718270070213,0.57497264,67552.0,67551.0,0.001946]
[1718270075147,0.59491264,67552.0,67551.0,0.001946]
[1718270082725,0.62090377,67552.0,67551.0,0.001946]
[1718270083428,0.64270879,67552.0,67551.0,0.001946]
[1718270085040,0.69270879,67552.0,67551.0,0.001946]
[1718270085448,0.99981114,67552.0,67551.0,0.001946]
[1718270085654,1.09981114,67552.0,67551.0,0.001946]
[1718270085826,0.94981114,67552.0,67551.0,0.001946]
[1718270086260,0.93581114,67552.0,67551.0,0.000946]
[1718270086574,0.92181114,67552.0,67551.0,0.000946]
[1718270086778,0.93581114,67552.0,67551.0,0.001946]
[1718270087997,0.93581114,67552.0,67551.0,0.002946]
[1718270088196,0.94981114,67552.0,67551.0,0.002946]
[1718270089361,1.04981114,67552.0,67551.0,0.002946]
[1718270089556,0.64270879,67552.0,67551.0,0.002946]
[1718270089765,1.04981292,67552.0,67551.0,0.002946]
[1718270089969,0.94981292,67552.0,67551.0,0.002946]
[1718270090394,1.0280079,67552.0,67551.0,0.002946]
[1718270092339,0.9280079,67552.0,67551.0,0.002946]
[1718270093309,0.97213535,67552.0,67551.0,0.002946]
[1718270093766,1.14513535,67552.0,67551.0,0.002946]
[1718270093979,0.2,67548.0,67547.0,0.000946]
[1718270094143,1.00287382,67548.0,67547.0,0.000946]
[1718270094344,0.97088708,67548.0,67547.0,0.000946]
[1718270094696,0.87088708,67548.0,67547.0,0.000946]
[1718270094945,0.97088708,67548.0,67547.0,0.000946]
[1718270095150,1.11520701,67548.0,67547.0,0.000946]
[1718270095305,1.44326549,67548.0,67547.0,0.000946]
[1718270095506,1.52034834,67548.0,67547.0,0.000946]
[1718270095710,1.25534742,67548.0,67547.0,0.000946]
[1718270095954,1.26934742,67548.0,67547.0,0.000946]
[1718270096584,1.33557449,67548.0,67547.0,0.000946]
[1718270097057,1.68566451,67548.0,67547.0,0.000946]
[1718270097296,1.68566451,67548.0,67518.0,0.0805]
[1718270097297,0.111,67533.0,67518.0,0.0805]
[1718270097527,0.111,67533.0,67528.0,0.43295979]
[1718270097528,0.05,67531.0,67528.0,0.43295979]
[1718270097756,0.05,67531.0,67518.0,0.0805]
[1718270097757,0.04414796,67529.0,67518.0,0.0805]
[1718270097963,0.0715,67519.0,67518.0,0.0805]
[1718270098400,0.22796692,67519.0,67512.0,0.1411]
[1718270098638,0.0715,67513.0,67512.0,0.1411]
[1718270099050,0.08363062,67513.0,67512.0,0.1411]
[1718270099228,0.01213062,67513.0,67512.0,0.1411]
[1718270099424,0.08363062,67513.0,67512.0,0.1411]
[1718270099627,0.0715,67513.0,67512.0,0.1411]
[1718270099863,0.08359999,67513.0,67512.0,0.1411]
[1718270100209,0.08959999,67513.0,67512.0,0.1411]
[1718270100410,0.08959999,67513.0,67512.0,0.16104]
[1718270100626,0.11299198,67513.0,67512.0,0.16104]
[1718270100828,0.10089199,67513.0,67512.0,0.1411]
[1718270101440,0.11299198,67513.0,67512.0,0.1411]
[1718270101875,0.11899198,67513.0,67512.0,0.1411]
[1718270103113,0.04749198,67513.0,67512.0,0.16104]
[1718270103318,0.11899198,67513.0,67512.0,0.16104]
[1718270103990,0.11899198,67513.0,67512.0,0.1411]
[1718270105760,0.11899198,67513.0,67512.0,0.16104]
[1718270106277,0.11899198,67513.0,67512.0,0.1411]
[1718270106737,0.11899198,67513.0,67512.0,0.16104]
[1718270106947,0.11899198,67513.0,67506.0,0.00086876]
[1718270106948,0.1865,67512.0,67506.0,0.00086876]
[1718270107145,0.0715,67507.0,67506.0,0.00086876]
[1718270107352,0.22791211,67507.0,67506.0,0.00086876]
[1718270107579,0.22791211,67507.0,67506.0,0.06456876]
[1718270107580,0.25641211,67507.0,67506.0,0.06456876]
[1718270107727,0.25641211,67507.0,67506.0,0.14776876]
[1718270107728,0.32791211,67507.0,67506.0,0.14776876]
[1718270107936,0.36570332,67507.0,67506.0,0.14776876]
[1718270108568,0.36570332,67507.0,67506.0,0.16770876]
[1718270108793,0.01209218,67507.0,67506.0,0.16770876]
[1718270109166,0.0715,67508.0,67507.0,0.01994]
[1718270109481,0.0715,67508.0,67507.0,0.16234]
[1718270112297,0.0775,67508.0,67507.0,0.16234]
[1718270112629,0.0835,67508.0,67507.0,0.16234]
[1718270114286,0.09557777,67508.0,67507.0,0.16234]
[1718270114984,0.11513555,67508.0,67506.0,0.00086876]
[1718270115603,0.11463555,67508.0,67506.0,0.00086876]
[1718270115802,0.0715,67507.0,67506.0,0.00086876]
[1718270116227,0.08356222,67507.0,67506.0,0.00086876]
[1718270116591,0.08356222,67507.0,67506.0,0.02080876]
[1718270117380,0.08356222,67507.0,67506.0,0.08180876]
[1718270117950,0.0715,67507.0,67506.0,0.08180876]
[1718270118361,0.02606237,67507.0,67506.0,0.16010876]
[1718270118572,0.014,67507.0,67506.0,0.16010876]
[1718270119056,0.0715,67511.0,67510.0,0.01814]
[1718270119503,0.014,67507.0,67506.0,0.00086876]
[1718270119705,0.20732227,67507.0,67506.0,0.00086876]
[1718270119926,0.26482227,67507.0,67506.0,0.00086876]
[1718270120141,0.41582227,67507.0,67506.0,0.00086876]
[1718270120573,0.45182227,67507.0,67506.0,0.00086876]
[1718270120783,0.51752227,67507.0,67506.0,0.00086876]
[1718270120999,0.62522227,67507.0,67506.0,0.00086876]
[1718270121212,0.70092227,67507.0,67506.0,0.00086876]
[1718270121639,0.05,67502.0,67487.0,0.072316]
[1718270121858,0.56122227,67507.0,67487.0,0.072316]
[1718270121859,0.1792,67488.0,67487.0,0.072316]
[1718270122082,0.34651993,67488.0,67487.0,0.009416]
[1718270122288,0.44651993,67488.0,67487.0,0.009416]
[1718270123215,0.1158,67495.0,67487.0,0.009416]
[1718270123216,0.02,67501.0,67494.0,0.01814]
[1718270123425,0.2292,67499.0,67492.0,0.0772]
[1718270123641,0.26731993,67498.0,67494.0,0.01814]
[1718270123847,0.24431993,67498.0,67495.0,0.01814]
[1718270124082,0.023,67497.0,67492.0,0.0772]
[1718270124322,0.16731993,67497.0,67492.0,0.0772]
[1718270124559,0.16731993,67497.0,67491.0,0.0655]
[1718270124560,0.24431993,67496.0,67491.0,0.0655]
[1718270124772,0.04988035,67495.0,67491.0,0.0655]
[1718270125192,0.04988035,67495.0,67493.0,0.01814]
[1718270125397,0.023,67495.0,67494.0,0.01814]
[1718270126048,0.023,67495.0,67491.0,0.08364]
[1718270126269,0.037,67495.0,67491.0,0.08364]
[1718270126688,0.023,67495.0,67494.0,0.01814]
[1718270127153,0.037,67495.0,67494.0,0.01814]
[1718270128069,0.037,67495.0,67491.0,0.0655]
[1718270128070,0.051,67495.0,67491.0,0.08364]
[1718270128567,0.037,67495.0,67494.0,0.01814]
[1718270129006,0.051,67495.0,67494.0,0.01814]
[1718270129309,0.037,67495.0,67491.0,0.08364]
[1718270129558,0.04605199,67494.0,67491.0,0.0655]
[1718270129784,0.023,67493.0,67491.0,0.0655]
[1718270130543,0.16731993,67493.0,67491.0,0.0655]
[1718270130761,0.34651993,67493.0,67488.0,0.0772]
[1718270131204,0.04925719,67492.0,67488.0,0.0772]
[1718270131421,0.023,67491.0,67488.0,0.0772]
[1718270132695,0.023,67491.0,67488.0,0.09534]
[1718270133147,0.023,67491.0,67488.0,0.0772]
[1718270133378,0.014,67491.0,67488.0,0.09534]
[1718270133589,0.023,67490.0,67489.0,0.01814]
[1718270134948,0.023,67492.0,67491.0,0.01814]
[1718270135394,0.023,67495.0,67494.0,0.01814]
[1718270135618,0.123,67496.0,67495.0,0.01814]
[1718270135844,0.04900234,67507.0,67499.0,0.01814]
[1718270136024,0.15170875,67511.0,67499.0,0.01814]
[1718270136025,0.1792,67505.0,67499.0,0.01814]
[1718270136272,0.1792,67505.0,67495.0,0.1427]
[1718270136273,0.1792,67505.0,67502.0,0.01814]
[1718270136487,0.1792,67505.0,67495.0,0.1427]
[1718270136488,0.16223993,67504.0,67503.0,0.01814]
[1718270136676,0.1792,67505.0,67504.0,0.01814]
[1718270136819,0.32351993,67505.0,67504.0,0.01814]
[1718270137023,0.42351993,67505.0,67504.0,0.01814]
[1718270137227,0.42351993,67505.0,67499.0,0.01814]
[1718270137461,0.123,67504.0,67499.0,0.01814]
[1718270138423,0.123,67504.0,67501.0,0.01814]
[1718270138578,0.123,67504.0,67503.0,0.01814]
[1718270138773,0.3022,67504.0,67503.0,0.01814]
[1718270139377,0.3162,67504.0,67503.0,0.01814]
[1718270139811,0.3302,67504.0,67503.0,0.01814]
[1718270140019,0.137,67504.0,67503.0,0.01814]
[1718270140187,0.137,67504.0,67503.0,0.15804]
[1718270140396,0.151,67504.0,67503.0,0.15804]
[1718270141028,0.137,67504.0,67503.0,0.15804]
[1718270141445,0.151,67504.0,67503.0,0.15804]
[1718270141939,0.137,67504.0,67503.0,0.15804]
[1718270142286,0.142,67504.0,67503.0,0.15804]
[1718270142720,0.019,67504.0,67503.0,0.15804]
[1718270142946,0.005,67504.0,67503.0,0.15804]
[1718270143157,0.01,67504.0,67503.0,0.15804]
[1718270143377,0.01,67504.0,67503.0,0.27368526]
[1718270143583,0.01,67504.0,67503.0,0.15804]
[1718270152526,0.01,67504.0,67503.0,0.16804]
[1718270153341,0.01,67504.0,67503.0,0.2846505]
[1718270153542,0.01,67504.0,67503.0,0.2855965]
[1718270155068,0.01,67504.0,67503.0,0.168986]
[1718270156300,0.01,67504.0,67503.0,0.43026144]
[1718270156502,0.01,67504.0,67503.0,0.4823204]
[1718270157142,0.01,67504.0,67503.0,0.35536489]
[1718270157351,0.005,67504.0,67503.0,0.33883825]
[1718270157570,0.00086,67505.0,67504.0,0.01814]
[1718270157780,0.00086,67505.0,67504.0,0.28223329]
[1718270159514,0.00086,67505.0,67504.0,0.29223329]
[1718270160152,0.00286,67505.0,67504.0,0.29223329]
[1718270161091,0.00386,67505.0,67504.0,0.28223329]
[1718270161522,0.00386,67505.0,67504.0,0.16444]
[1718270162135,0.00386,67505.0,67504.0,0.28416005]
[1718270169680,0.00386,67505.0,67504.0,0.29416005]
[1718270171073,0.00386,67505.0,67504.0,0.62388446]
[1718270172022,0.00286,67505.0,67504.0,0.62388446]
[1718270172826,0.00086,67505.0,67504.0,0.62388446]
[1718270173032,0.00186,67505.0,67504.0,0.62488446]
[1718270173290,0.00186,67505.0,67504.0,0.82518989]
[1718270173517,0.00186,67505.0,67504.0,0.82418989]
[1718270173696,0.00186,67505.0,67504.0,0.72418989]
[1718270173697,0.00286,67505.0,67504.0,0.72418989]
[1718270173870,0.00286,67505.0,67504.0,0.52518989]
[1718270173871,0.00386,67505.0,67504.0,0.52518989]
[1718270174069,0.00286,67505.0,67504.0,0.52518989]
[1718270174505,0.00386,67505.0,67504.0,0.52518989]
[1718270174927,0.00286,67505.0,67504.0,0.52518989]
[1718270175281,0.00286,67505.0,67504.0,0.52530505]
[1718270175485,0.00386,67505.0,67504.0,0.52530505]
[1718270176310,0.00186,67505.0,67504.0,0.52430505]
[1718270176742,0.00286,67505.0,67504.0,0.52530505]
[1718270176952,0.00086,67505.0,67504.0,0.37998512]
[1718270177379,0.00186,67505.0,67504.0,0.38098512]
[1718270177839,0.00186,67505.0,67504.0,0.37998512]
[1718270178282,0.00286,67505.0,67504.0,0.38098512]
[1718270178511,0.00186,67505.0,67504.0,0.38098512]
[1718270178921,0.00286,67505.0,67504.0,0.38098512]
[1718270179333,0.00286,67505.0,67504.0,0.38152795]
[1718270179957,0.00186,67505.0,67504.0,0.38052795]
[1718270180398,0.00086,67505.0,67504.0,0.38052795]
[1718270180611,0.00186,67505.0,67504.0,0.38140145]
[1718270180948,0.00086,67505.0,67504.0,0.38040145]
[1718270181153,0.00286,67505.0,67504.0,0.38140145]
[1718270181673,0.00186,67505.0,67504.0,0.38140145]
[1718270182081,0.00186,67505.0,67504.0,0.38040145]
[1718270182302,0.00286,67505.0,67504.0,0.38140145]
[1718270183738,0.00186,67505.0,67504.0,0.38040145]
[1718270183948,0.00186,67505.0,67504.0,0.52472138]
[1718270184185,0.00286,67505.0,67504.0,0.52572138]
[1718270186803,0.00286,67505.0,67504.0,0.52666738]
[1718270189558,0.00286,67505.0,67504.0,0.57098943]
[1718270189999,0.00286,67505.0,67504.0,0.52662988]
[1718270192518,0.00286,67505.0,67504.0,0.52733045]
[1718270192986,0.00286,67505.0,67504.0,0.57167546]
[1718270193214,0.00286,67505.0,67504.0,0.67167546]
[1718270193433,0.00286,67505.0,67504.0,0.62733045]
[1718270193645,0.00286,67505.0,67504.0,1.32535673]
[1718270194076,0.00286,67505.0,67504.0,1.48154917]
[1718270194280,0.00286,67505.0,67504.0,1.37068663]
[1718270194479,0.00086,67505.0,67504.0,1.48054917]
[1718270194897,0.00086,67505.0,67504.0,1.54968663]
[1718270194898,0.00286,67505.0,67504.0,1.54968663]
[1718270195162,0.00186,67505.0,67504.0,1.54868663]
[1718270195604,0.00286,67505.0,67504.0,1.54968663]
[1718270196235,0.00286,67505.0,67504.0,1.59968663]
[1718270196456,0.00186,67505.0,67504.0,1.59968663]
[1718270196894,0.00286,67505.0,67504.0,1.60168663]
[1718270197100,0.00286,67505.0,67504.0,2.10168663]
[1718270198802,0.00286,67505.0,67504.0,2.23472168]
[1718270199013,0.00286,67505.0,67504.0,2.08531731]
[1718270199207,0.00286,67505.0,67504.0,2.10167862]
[1718270199454,0.00286,67505.0,67504.0,2.23461532]
[1718270199652,0.29535945,67545.0,67541.0,0.01814]
[1718270199653,0.0633,67544.0,67541.0,0.01814]
[1718270199826,0.1633,67544.0,67543.0,0.01814]
[1718270200021,0.1633,67544.0,67541.0,0.01814]
[1718270200022,0.0633,67543.0,67541.0,0.01814]
[1718270200236,0.0786,67542.0,67539.0,0.01814]
[1718270200501,0.0761,67540.0,67538.0,0.01814]
[1718270200703,0.0638,67539.0,67538.0,0.01814]
[1718270201642,0.0786,67538.0,67534.0,0.01814]
[1718270201841,0.1,67544.0,67527.0,0.4774]
[1718270201842,0.0786,67536.0,67535.0,0.01814]
[1718270202218,0.1415,67536.0,67535.0,0.01814]
[1718270203655,0.15362408,67536.0,67535.0,0.01814]
[1718270204062,0.16162408,67536.0,67535.0,0.01914]
[1718270204643,0.16662408,67536.0,67535.0,0.02014]
[1718270205475,0.16662408,67536.0,67535.0,0.002]
[1718270208549,0.16662408,67536.0,67535.0,0.02014]
[1718270209392,0.16662408,67536.0,67535.0,0.002]
[1718270212481,0.16662408,67536.0,67535.0,0.02014]
[1718270212935,0.16662408,67536.0,67535.0,0.002]
[1718270213757,0.16662408,67536.0,67535.0,0.02014]
[1718270214606,0.1545,67536.0,67535.0,0.02014]
[1718270215014,0.16664128,67536.0,67535.0,0.02014]
[1718270216287,0.02514128,67536.0,67535.0,0.02014]
[1718270217317,0.005,67536.0,67535.0,0.01914]
[1718270217535,0.01214023,67536.0,67535.0,0.01814]
[1718270217739,0.011,67536.0,67535.0,0.01914]
[1718270217952,0.02514023,67536.0,67535.0,0.01914]
[1718270218155,0.002,67536.0,67535.0,0.01814]
[1718270218363,0.01414023,67536.0,67535.0,0.01814]
[1718270218565,0.004,67536.0,67535.0,0.01814]
[1718270218763,0.01614023,67536.0,67535.0,0.01814]
[1718270219062,0.004,67536.0,67535.0,0.01814]
[1718270219267,0.01614023,67536.0,67535.0,0.01814]
[1718270219504,0.004,67536.0,67535.0,0.01814]
[1718270219722,0.01700023,67536.0,67535.0,0.01814]
[1718270219927,0.01700023,67536.0,67533.0,0.01814]
[1718270220344,0.08860023,67536.0,67531.0,0.01814]
[1718270220601,0.08860023,67536.0,67533.0,0.01814]
[1718270220805,0.08860023,67536.0,67535.0,0.01814]
[1718270220806,0.08460023,67536.0,67535.0,0.01814]
[1718270221837,0.08460023,67536.0,67534.0,0.01814]
[1718270222012,0.08660023,67536.0,67535.0,0.01814]
[1718270222259,0.08660023,67536.0,67531.0,0.01814]
[1718270222479,0.08660023,67536.0,67531.0,0.02114]
[1718270222900,0.08660023,67536.0,67533.0,0.01814]
[1718270223325,0.08660023,67536.0,67531.0,0.02114]
[1718270223526,0.0716,67532.0,67531.0,0.02114]
[1718270223953,0.08374162,67532.0,67531.0,0.003]
[1718270224190,0.08374162,67532.0,67531.0,0.02114]
[1718270224405,0.08374162,67532.0,67531.0,0.01814]
[1718270225155,0.08374162,67532.0,67527.0,0.01814]
[1718270225357,0.0716,67528.0,67524.0,0.01814]
[1718270225581,0.0716,67525.0,67524.0,0.01814]
[1718270226018,0.08374162,67525.0,67524.0,0.01814]
[1718270226425,0.08374162,67525.0,67520.0,0.4774]
[1718270226426,0.08374162,67525.0,67523.0,0.01814]
[1718270226665,0.08374162,67525.0,67520.0,0.4774]
[1718270226666,0.1402,67524.0,67520.0,0.4774]
[1718270226906,0.0716,67521.0,67520.0,0.4774]
[1718270227351,0.08373561,67521.0,67520.0,0.4774]
[1718270228433,0.09273561,67521.0,67520.0,0.4784]
[1718270229482,0.25552917,67521.0,67520.0,0.4784]
[1718270229698,0.25523561,67521.0,67520.0,0.4784]
[1718270229920,0.50715342,67521.0,67520.0,0.4784]
[1718270230139,0.50715342,67521.0,67520.0,0.4794]
[1718270230140,0.56288096,67521.0,67520.0,0.4794]
[1718270230346,0.56288096,67521.0,67520.0,0.002]
[1718270230347,0.26223561,67521.0,67520.0,0.002]
[1718270231221,0.46265002,67521.0,67520.0,0.002]
[1718270231442,0.05,67515.0,67505.0,0.000946]
[1718270231663,0.0716,67506.0,67505.0,0.000946]
[1718270231893,0.2113,67506.0,67505.0,0.000946]
[1718270232121,0.36749558,67506.0,67505.0,0.000946]
[1718270232799,0.29589558,67506.0,67505.0,0.000946]
[1718270233221,0.47509558,67506.0,67505.0,0.000946]
[1718270234488,0.48909558,67506.0,67505.0,0.000946]
[1718270234925,0.47509558,67506.0,67505.0,0.000946]
[1718270235108,0.29589558,67506.0,67505.0,0.000946]
[1718270235336,0.47509558,67506.0,67505.0,0.000946]
[1718270235837,0.48909558,67506.0,67505.0,0.000946]
[1718270236760,0.50309558,67506.0,67505.0,0.000946]
[1718270237150,0.48909558,67506.0,67505.0,0.000946]
[1718270238733,0.51709558,67506.0,67505.0,0.000946]
[1718270238935,0.48909558,67506.0,67505.0,0.000946]
[1718270239361,0.50309558,67506.0,67505.0,0.000946]
[1718270239581,0.48909558,67506.0,67505.0,0.000946]
[1718270239779,0.46796558,67506.0,67505.0,0.000946]
[1718270240020,0.28876558,67506.0,67505.0,0.000946]
[1718270240218,0.45396558,67506.0,67505.0,0.000946]
[1718270240692,0.46796558,67506.0,67505.0,0.000946]
[1718270241127,0.45396558,67506.0,67505.0,0.000946]
[1718270241328,0.46796558,67506.0,67505.0,0.000946]
[1718270241823,0.51476214,67506.0,67505.0,0.000946]
[1718270242143,0.52250379,67506.0,67505.0,0.000946]
[1718270242564,0.53650379,67506.0,67505.0,0.000946]
[1718270242767,0.52250379,67506.0,67505.0,0.000946]
[1718270243194,0.53650379,67506.0,67505.0,0.000946]
[1718270244092,0.55050379,67506.0,67505.0,0.000946]
[1718270244297,0.18480723,67506.0,67505.0,0.000946]
[1718270244500,0.26400723,67506.0,67505.0,0.000946]
[1718270244790,0.35000723,67506.0,67505.0,0.000946]
[1718270245335,0.36400723,67506.0,67505.0,0.000946]
[1718270245536,0.35000723,67506.0,67505.0,0.000946]
[1718270245802,0.32826558,67506.0,67505.0,0.000946]
[1718270245959,0.36844226,67506.0,67505.0,0.000946]
[1718270246476,0.51054226,67506.0,67505.0,0.000946]
[1718270246686,0.51647026,67506.0,67505.0,0.000946]
[1718270247072,0.33727026,67506.0,67505.0,0.000946]
[1718270247276,0.51647026,67506.0,67505.0,0.000946]
[1718270248953,0.49029358,67506.0,67505.0,0.000946]
[1718270249732,0.50781298,67506.0,67505.0,0.000946]
[1718270249918,0.04599358,67506.0,67505.0,0.019086]
[1718270250165,0.04006558,67506.0,67505.0,0.159386]
[1718270250995,0.02606558,67506.0,67505.0,0.159386]
[1718270251256,0.01206558,67506.0,67505.0,0.159386]
[1718270251371,0.014,67506.0,67505.0,0.159386]
[1718270251589,0.028,67506.0,67505.0,0.159386]
[1718270251795,0.01813686,67510.0,67505.0,0.159386]
[1718270252016,0.01902931,67506.0,67505.0,0.159386]
[1718270252211,0.015,67506.0,67505.0,0.159386]
[1718270252636,0.007,67506.0,67505.0,0.159386]
[1718270253455,0.01902931,67506.0,67505.0,0.159386]
[1718270253663,0.007,67506.0,67505.0,0.159386]
[1718270253903,0.01902931,67506.0,67505.0,0.159386]
[1718270254090,0.007,67506.0,67505.0,0.159386]
[1718270254282,0.01902931,67506.0,67505.0,0.159386]
[1718270255845,0.02702931,67506.0,67505.0,0.159386]
[1718270257007,0.09862931,67506.0,67505.0,0.159386]
[1718270258423,0.02702931,67506.0,67505.0,0.159386]
[1718270258887,0.09862931,67506.0,67505.0,0.159386]
[1718270259952,0.02702931,67506.0,67505.0,0.159386]
[1718270261056,0.015,67506.0,67505.0,0.159386]
[1718270261262,0.02703962,67506.0,67505.0,0.159386]
[1718270261915,0.02703962,67506.0,67505.0,0.141246]
[1718270262061,0.02703962,67506.0,67505.0,0.097586]
[1718270262490,0.02703962,67506.0,67505.0,0.079446]
[1718270262701,0.02703962,67506.0,67505.0,0.097586]
[1718270264009,0.02703962,67506.0,67505.0,0.000946]
[1718270265738,0.02703962,67506.0,67505.0,0.019086]
[1718270265951,0.02703962,67506.0,67505.0,0.000946]
[1718270266178,0.02703962,67506.0,67505.0,0.019086]
[1718270266590,0.02703962,67506.0,67505.0,0.000946]
[1718270266751,0.02703962,67506.0,67505.0,0.019086]
[1718270271928,0.04458805,67506.0,67505.0,0.019086]
[1718270273147,0.04458805,67506.0,67505.0,0.000946]
[1718270273519,0.10678805,67506.0,67505.0,0.000946]
[1718270274352,0.04458805,67506.0,67505.0,0.000946]
[1718270275397,0.07468077,67506.0,67505.0,0.000946]
[1718270277387,0.04458805,67506.0,67505.0,0.000946]
[1718270281174,0.11618805,67506.0,67505.0,0.000946]
[1718270281859,0.04458805,67506.0,67505.0,0.000946]
[1718270282069,0.11618805,67506.0,67505.0,0.000946]
[1718270282601,0.09863962,67506.0,67505.0,0.000946]
[1718270284018,0.13363478,67506.0,67505.0,0.000946]
[1718270285249,0.13363478,67506.0,67495.0,0.117578]
[1718270285473,0.0716,67497.0,67496.0,0.12290974]
[1718270285862,0.08362034,67497.0,67496.0,0.12290974]
[1718270286850,0.08462034,67497.0,67496.0,0.12290974]
[1718270288361,0.08362034,67497.0,67496.0,0.12291106]
[1718270288859,0.08862034,67497.0,67496.0,0.12291106]
[1718270289294,0.08862034,67497.0,67496.0,0.12591106]
[1718270289725,0.0766,67497.0,67496.0,0.12291106]
[1718270290172,0.09462034,67497.0,67496.0,0.12291106]
[1718270290994,0.10408237,67497.0,67496.0,0.12291106]
[1718270291203,0.10408237,67497.0,67488.0,0.138]
[1718270291442,0.02302034,67497.0,67489.0,0.12291326]
[1718270291654,0.02302034,67497.0,67490.0,0.12291326]
[1718270291880,0.02302034,67497.0,67491.0,0.12291326]
[1718270292088,0.0716,67492.0,67491.0,0.12291326]
[1718270292309,0.0716,67492.0,67489.0,0.12292295]
[1718270292511,0.01201485,67492.0,67490.0,0.12292295]
[1718270292738,0.01201485,67492.0,67491.0,0.12292295]
[1718270292950,0.0716,67492.0,67491.0,0.12292295]
[1718270293371,0.0716,67492.0,67488.0,0.138]
[1718270293573,0.0767,67498.0,67491.0,0.001]
[1718270293795,0.0716,67492.0,67491.0,0.001]
[1718270295320,0.0716,67492.0,67488.0,0.138]
[1718270295532,0.0716,67492.0,67489.0,0.12292294]
[1718270296743,0.0726,67492.0,67491.0,0.001]
[1718270296949,0.0726,67492.0,67489.0,0.12292294]
[1718270296950,0.0716,67492.0,67488.0,0.138]
[1718270297158,0.0716,67492.0,67489.0,0.12292294]
[1718270297559,0.0716,67492.0,67488.0,0.138]